fUST/lending_fUST_20250614
["ID","MTS","AMOUNT","RATE_DAILY","PERIOD"]
[365788319,1749913843023,-160.0,0.00023835,4]
[365788321,1749913843033,-460.0,0.00023835,4]
[365788323,1749913843042,-460.0,0.00023835,4]
[365788325,1749913843052,-696.64,0.00023835,4]
[365788327,1749913843064,-460.0,0.00023835,4]
[365788329,1749913843074,-460.0,0.00023835,4]
[365788331,1749913843084,-460.0,0.00023835,4]
[365788333,1749913843093,-687.19,0.00023835,4]
[365788334,1749913843102,-460.0,0.00023835,4]
[365788337,1749913843112,-788.36,0.00023835,4]
[365788338,1749913843122,-853.4,0.00023835,4]
[365788341,1749913843131,-460.0,0.00023835,4]
[365788343,1749913843143,-460.0,0.00023835,4]
[365788345,1749913843153,-555.82,0.00023835,4]
[365788347,1749913843163,-498.61,0.00023835,4]
[365788348,1749913843172,-2719.54,0.00023835,4]
[365788350,1749913843181,-484.55,0.00023835,4]
[365788352,1749913843191,-530.11,0.00023835,4]
[365788354,1749913843200,-404.78032141,0.00023835,4]
[365788356,1749913843210,-1818.38,0.00023835,4]
[365788358,1749913843219,-460.0,0.00023835,2]
[365788360,1749913843229,-1284.9,0.00023835,4]
[365788362,1749913843243,-2259.37,0.00023835,4]
[365788364,1749913843258,-460.0,0.00023835,4]
[365788366,1749913843271,-460.0,0.00023835,4]
[365788368,1749913843281,-2888.83,0.00023835,4]
[365788370,1749913843290,-2075.76,0.00023835,4]
[365788372,1749913843300,-1176.11,0.00023835,4]
[365788374,1749913843310,-3004.67,0.00023835,4]
[365788376,1749913843319,-460.0,0.00023835,4]
[365788378,1749913843329,-460.0,0.00023835,4]
[365788380,1749913843338,-460.0,0.00023835,4]
[365788382,1749913843347,-460.0,0.00023835,4]
[365788384,1749913843357,-654.51,0.00023835,4]
[365788386,1749913843366,-1285.92,0.00023835,4]
[365788388,1749913843375,-460.0,0.00023835,4]
[365788391,1749913843385,-546.98,0.00023835,4]
[365788394,1749913843395,-1651.53,0.00023835,4]
[365788397,1749913843404,-299.83,0.00023835,4]
[365788399,1749913843413,-2149.79,0.00023835,4]
[365788401,1749913843423,-2775.53,0.00023835,4]
[365788403,1749913843432,-460.0,0.00023835,4]
[365788405,1749913843441,-158.66118946,0.00023836,2]
[365788407,1749913843451,-158.8714084,0.00023836,2]
[365788408,1749913843460,-153.0,0.00023836,2]
[365788409,1749913843470,-192.3900831,0.00023836,2]
[365788410,1749913843479,-1147.5719738,0.00023836,2]
[365788411,1749913843489,-176.9937618,0.00023836,2]
[365788412,1749913843499,-154.23238314,0.00023838,2]
[365788413,1749913843508,-3000.0,0.0002384,2]
[365788414,1749913843517,-3000.0,0.0002385,2]
[365788415,1749913843527,-3000.0,0.0002386,2]
[365788416,1749913843537,-424.7152929,0.00023866,10]
[365788417,1749913843547,-3000.0,0.0002387,2]
[365788418,1749913843556,-242.779482,0.0002387,7]
[365788419,1749913843565,-637.065017,0.0002387,7]
[365788420,1749913843575,-637.065017,0.0002387,7]
[365788421,1749913843585,-151.0,0.0002387,7]
[365788422,1749913843594,-587.0,0.00023878,2]
[365788423,1749913843603,-3000.0,0.0002388,2]
[365788424,1749913843612,-3000.0,0.0002389,2]
[365788425,1749913843622,-3000.0,0.000239,2]
[365788426,1749913843631,-2131.36,0.000239,7]
[365788427,1749913843640,-2792.29011134,0.000239,2]
[365788428,1749913843650,-3765.770868,0.0002391,2]
[365788429,1749913843659,-150.0,0.0002392,2]
[365788431,1749913843668,-150.0,0.0002392,2]
[365788432,1749913843677,-150.0,0.0002392,2]
[365788433,1749913843686,-587.0,0.00023962,2]
[365788434,1749913843696,-424.7152929,0.00023969,10]
[365788437,1749913843797,-196.38712711,0.00023973,2]
[365788438,1749913843807,-600.0,0.00023988,2]
[365788439,1749913843816,-1292.09821494,0.0002399,26]
[365788440,1749913843826,-192826.23809017,0.00024,2]
[365788441,1749913843930,-3987.87695908,0.00024,2]
[365788442,1749913843942,-485.4814341,0.00024,2]
[365788443,1749913843954,-1055.65543786,0.00024,2]
[365788444,1749913843965,-641.04713627,0.00024,2]
[365788445,1749913844300,-228.986725,0.00021052,2]
[365788446,1749913844310,-5505.08703733,0.00021821,2]
[365788447,1749913844321,-1475.5999992,0.00021821,2]
[365788448,1749913844332,-757032.27927347,0.00021821,2]
[365788449,1749913844342,-460.0,0.00021917,4]
[365788450,1749913844351,-440.0,0.00021917,4]
[365788451,1749913844361,-460.0,0.00021917,4]
[365788452,1749913844370,-460.0,0.00021917,4]
[365788453,1749913844379,-460.0,0.00022191,4]
[365788454,1749913844388,-460.0,0.00022191,4]
[365788455,1749913844398,-460.0,0.00022465,4]
[365788456,1749913844407,-389.28,0.00022739,4]
[365788457,1749913844417,-460.0,0.00023835,4]
[365788458,1749913844426,-177168.10605875,0.00024,2]
[365788459,1749913844435,-151.909552,0.00024,7]
[365788460,1749913844445,-165.611223,0.00024,7]
[365788461,1749913844454,-151.0,0.00024,7]
[365788462,1749913844463,-151.0,0.00024,7]
[365788463,1749913844472,-152.635072,0.00024,7]
[365788464,1749913844481,-152.635072,0.00024,7]
[365788465,1749913844490,-151.0,0.00024,7]
[365788466,1749913844499,-152.199679,0.00024,7]
[365788467,1749913844509,-186.226984,0.00024,7]
[365788468,1749913844518,-152.199679,0.00024,7]
[365788469,1749913844528,-151.0,0.00024,7]
[365788470,1749913844537,-151.0,0.00024,7]
[365788471,1749913844546,-151.0,0.00024,7]
[365788472,1749913844555,-152.175404,0.00024,7]
[365788473,1749913844565,-483.228117,0.00024,7]
[365788474,1749913844573,-483.228117,0.00024,7]
[365788475,1749913844582,-868.6,0.00024,7]
[365788476,1749913844591,-637.065017,0.00024,7]
[365788477,1749913844600,-637.065017,0.00024,7]
[365788478,1749913844609,-2107.37,0.00024,2]
[365788479,1749913844619,-151.0,0.00024,7]
[365788480,1749913844628,-392700.4832254,0.00024,2]
[365788481,1749913844681,-460.0,0.00021917,4]
[365788482,1749913844691,-405.0,0.00023698,2]
[365788483,1749913844699,-4306.34545187,0.00024,2]
[365788484,1749913844710,-273.28428397,0.00024,2]
[365788485,1749913844725,-712.75611429,0.00024,2]
[365788486,1749913844737,-400.0,0.00024,2]
[365788487,1749913844833,-440.0,0.00021917,4]
[365788488,1749913844842,-460.0,0.00021917,4]
[365788489,1749913844851,-440.0,0.00021917,4]
[365788490,1749913844861,-240.0,0.00021917,4]
[365788491,1749913844870,-550.0,0.00021917,4]
[365788492,1749913844879,-460.0,0.00022191,4]
[365788493,1749913844889,-405.0,0.00023698,2]
[365788494,1749913844898,-1560.17854325,0.00024,2]
[365788495,1749913844910,-4544.63660592,0.00024,2]
[365788503,1749913845803,-468.19298636,0.00021917,4]
[365788504,1749913845813,-440.0,0.00021917,4]
[365788505,1749913845822,-354.99977935,0.00024,2]
[365788506,1749913845834,-2458.41132676,0.00024,2]
[365788512,1749913945253,430.0,0.00024998,60]
[365788519,1749914015655,118.85929952,0.0002,30]
[365788520,1749914015678,55.0871132,0.0002,30]
[365788547,1749914426763,355.849909,0.00013699,2]
[365788551,1749914612171,227.59375679,0.0002,2]
[365788822,1749914826127,-2808.035815,0.00020094,2]
[365788827,1749914862000,218.534924,0.00019932,2]
[365788843,1749914947165,-154.15271675,0.00020087,2]
[365788844,1749914947185,-2145.79390359,0.00020094,2]
[365788849,1749914951598,6896.97489701,0.00019992,2]
[365788850,1749914951623,7754.0406,0.00019992,2]
[365788851,1749914951647,7754.0406,0.00019992,2]
[365788852,1749914951670,2494.94390299,0.00019992,2]
[365788853,1749914964118,-4191.63364804,0.00020094,2]
[365788854,1749914971164,-854.53663337,0.00020094,2]
[365788855,1749914971185,-355.849909,0.00020187,2]
[365788856,1749914971205,-182.354583,0.00020447,2]
[365788857,1749914971225,-250.7541781,0.00020447,2]
[365788858,1749914971244,-154.15271674,0.00020986,2]
[365788859,1749914971266,-258.0,0.00021001,2]
[365788860,1749914971286,-258.0,0.00021064,2]
[365788861,1749914971307,-300.0,0.00021085,2]
[365788862,1749914971327,-300.0,0.00021086,2]
[365788863,1749914971348,-500.0,0.00021086,2]
[365788864,1749914971369,-500.0,0.00021086,2]
[365788865,1749914971389,-500.0,0.00021086,2]
[365788866,1749914971410,-419.94862976,0.00021086,2]
[365788867,1749914971435,-500.0,0.00021086,2]
[365788868,1749914971455,-500.0,0.00021086,2]
[365788869,1749914971476,-500.0,0.00021086,2]
[365788870,1749914971504,-500.0,0.00021086,2]
[365788871,1749914971526,-500.0,0.00021086,2]
[365788872,1749914971548,-390.14248261,0.00021086,2]
[365788873,1749914971568,-623.97260795,0.00021086,2]
[365788874,1749914971589,-500.0,0.00021086,2]
[365788875,1749914971611,-417.16605973,0.00021086,2]
[365788876,1749914971631,-476.225,0.00021086,2]
[365788877,1749914971654,-500.0,0.00021086,2]
[365788878,1749914971676,-500.0,0.00021086,2]
[365788879,1749914971696,-499.38169526,0.00021086,2]
[365788880,1749914971719,-500.0,0.00021086,2]
[365788881,1749914971743,-500.0,0.00021086,2]
[365788882,1749914971765,-500.0,0.00021086,2]
[365788883,1749914971786,-500.0,0.00021086,2]
[365788884,1749914971808,-367.02741796,0.00021086,2]
[365788885,1749914976178,1810.46400422,0.00018986,2]
[365788933,1749915031908,-154.23238314,0.00020988,2]
[365788935,1749915031918,-300.0,0.00021085,2]
[365788948,1749915032035,-300.0,0.00021085,2]
[365788950,1749915032046,-300.0,0.00021085,2]
[365788952,1749915032056,-1200.0,0.00021085,2]
[365788954,1749915032065,-164.025,0.00021087,2]
[365788956,1749915032075,-500.0,0.00021087,2]
[365788958,1749915032084,-210.0158314,0.00021087,2]
[365788960,1749915032094,-500.0,0.00021087,2]
[365788963,1749915032102,-500.0,0.00021087,2]
[365788965,1749915032112,-500.0,0.00021087,2]
[365788968,1749915032121,-500.0,0.00021087,2]
[365788972,1749915032131,-500.0,0.00021087,2]
[365788974,1749915032140,-500.0,0.00021087,2]
[365788976,1749915032150,-50000.0,0.00021087,2]
[365788978,1749915032159,-14632.70985708,0.00021088,2]
[365788980,1749915032169,-600.0,0.00021154,2]
[365788982,1749915032178,-156.89515289,0.00021191,2]
[365788984,1749915032188,-12264.44110008,0.00021191,2]
[365788995,1749915032291,-500.0,0.00021087,2]
[365788997,1749915032302,-500.0,0.00021087,2]
[365788998,1749915032312,-196.74809416,0.00021087,2]
[365789000,1749915032321,-500.0,0.00021087,2]
[365789002,1749915032332,-500.0,0.00021087,2]
[365789004,1749915032342,-561.39192981,0.00021087,2]
[365789006,1749915032352,-3735.55889992,0.00021191,2]
[365789007,1749915032363,-7371.71174136,0.00021191,2]
[365789009,1749915032373,-338.75250177,0.000213,2]
[365789010,1749915032385,-633.02749823,0.000213,2]
[365789011,1749915032395,-1376.58,0.00021413,2]
[365789013,1749915032404,-151.0,0.00021422,2]
[365789015,1749915032415,-500.0,0.00021422,2]
[365789017,1749915032425,-500.0,0.00021422,2]
[365789018,1749915032435,-151.0,0.00021422,2]
[365789019,1749915032450,-500.0,0.00021422,2]
[365789020,1749915032461,-500.0,0.00021449,2]
[365789021,1749915032471,-500.0,0.00021449,2]
[365789022,1749915032482,-500.0,0.00021449,2]
[365789023,1749915032493,-500.0,0.00021477,2]
[365789024,1749915032503,-500.0,0.00021477,2]
[365789025,1749915032513,-500.0,0.00021477,2]
[365789026,1749915032524,-1037.72595358,0.000215,2]
[365789027,1749915032536,-500.0,0.00021504,2]
[365789028,1749915032546,-350.38578769,0.00021504,2]
[365789029,1749915032556,-500.0,0.00021504,2]
[365789030,1749915032565,-500.0,0.00021532,2]
[365789031,1749915032575,-500.0,0.00021532,2]
[365789032,1749915032585,-500.0,0.00021559,2]
[365789033,1749915032594,-500.0,0.00021559,2]
[365789034,1749915032604,-500.0,0.00021586,2]
[365789035,1749915032613,-500.0,0.00021586,2]
[365789036,1749915032623,-500.0,0.00021614,2]
[365789037,1749915032633,-500.0,0.00021614,2]
[365789038,1749915032643,-500.0,0.00021641,2]
[365789039,1749915032653,-332.23343728,0.00021641,2]
[365789040,1749915032663,-500.0,0.00021668,2]
[365789041,1749915032672,-500.0,0.00021669,2]
[365789042,1749915032682,-500.0,0.00021696,2]
[365789043,1749915032692,-500.0,0.00021696,2]
[365789044,1749915032701,-154.17905405,0.00021696,2]
[365789045,1749915032710,-160.426,0.00021717,2]
[365789046,1749915032720,-500.0,0.00021723,2]
[365789047,1749915032729,-500.0,0.00021723,2]
[365789048,1749915032738,-500.0,0.00021751,2]
[365789049,1749915032748,-500.0,0.00021751,2]
[365789050,1749915032757,-500.0,0.00021778,2]
[365789051,1749915032766,-500.0,0.00021778,2]
[365789052,1749915032776,-500.0,0.00021806,2]
[365789053,1749915032787,-500.0,0.00021806,2]
[365789054,1749915032796,-1058.54433628,0.00021817,2]
[365789055,1749915032806,-500.0,0.00021833,2]
[365789056,1749915032815,-500.0,0.00021833,2]
[365789057,1749915032825,-500.0,0.0002186,2]
[365789058,1749915032835,-500.0,0.0002186,2]
[365789059,1749915032844,-500.0,0.00021888,2]
[365789060,1749915032853,-500.0,0.00021888,2]
[365789061,1749915032862,-183.0,0.000219,3]
[365789062,1749915032872,-183.0,0.000219,2]
[365789063,1749915032881,-789.36323346,0.000219,6]
[365789064,1749915032891,-500.0,0.00021915,2]
[365789065,1749915032901,-500.0,0.00021915,2]
[365789066,1749915032910,-378.74088058,0.00021916,2]
[365789067,1749915032919,-500.0,0.00021916,2]
[365789068,1749915032929,-500.0,0.00021916,2]
[365789069,1749915032938,-500.0,0.00021916,2]
[365789070,1749915032948,-500.0,0.00021916,2]
[365789071,1749915032957,-470.16880064,0.00021916,2]
[365789072,1749915032966,-500.0,0.00021916,2]
[365789073,1749915032976,-160.0,0.00021916,2]
[365789074,1749915032985,-460.0,0.00021917,4]
[365789075,1749915032995,-440.0,0.00021917,4]
[365789076,1749915033004,-460.0,0.00021917,4]
[365789077,1749915033014,-460.0,0.00021917,4]
[365789078,1749915033023,-430.0,0.00021917,4]
[365789079,1749915033033,-430.0,0.00021917,4]
[365789080,1749915033043,-432.43472646,0.00021917,4]
[365789081,1749915033052,-404.28590609,0.00021917,4]
[365789082,1749915033062,-433.08403681,0.00021917,4]
[365789083,1749915033072,-436.13064833,0.00021917,4]
[365789084,1749915033081,-460.0,0.00021917,4]
[365789085,1749915033091,-403.92090289,0.00021917,4]
[365789086,1749915033100,-460.0,0.00021917,4]
[365789087,1749915033110,-460.0,0.00021917,4]
[365789088,1749915033120,-460.0,0.00021917,4]
[365789089,1749915033130,-460.0,0.00021917,4]
[365789090,1749915033139,-430.0,0.00021917,4]
[365789091,1749915033150,-517.99762888,0.00021917,4]
[365789092,1749915033159,-460.0,0.00021917,4]
[365789093,1749915033169,-460.0,0.00021917,4]
[365789094,1749915033178,-460.0,0.00021917,4]
[365789095,1749915033187,-460.0,0.00021917,4]
[365789096,1749915033197,-460.0,0.00021917,4]
[365789097,1749915033206,-460.0,0.00021917,4]
[365789098,1749915033216,-460.0,0.00021917,4]
[365789099,1749915033226,-460.0,0.00021917,4]
[365789100,1749915033235,-460.0,0.00021917,4]
[365789101,1749915033245,-460.0,0.00021917,4]
[365789102,1749915033255,-460.0,0.00021917,4]
[365789103,1749915033265,-460.0,0.00021917,4]
[365789104,1749915033275,-460.0,0.00021917,4]
[365789105,1749915033285,-460.0,0.00021917,4]
[365789106,1749915033299,-245.10365391,0.00021917,4]
[365789107,1749915033309,-460.0,0.00021917,4]
[365789108,1749915033318,-460.0,0.00021917,4]
[365789109,1749915033329,-460.0,0.00021917,2]
[365789110,1749915033339,-460.0,0.00021917,4]
[365789111,1749915033349,-509.02925318,0.00021917,4]
[365789112,1749915033359,-460.0,0.00021917,4]
[365789113,1749915033369,-460.0,0.00021917,4]
[365789114,1749915033379,-460.0,0.00021917,4]
[365789115,1749915033389,-461.71088696,0.00021917,4]
[365789116,1749915033401,-460.0,0.00021917,4]
[365789117,1749915033410,-460.0,0.00021917,4]
[365789118,1749915033420,-460.0,0.00021917,4]
[365789119,1749915033432,-460.0,0.00021917,4]
[365789120,1749915033444,-460.0,0.00021917,4]
[365789121,1749915033454,-460.0,0.00021917,4]
[365789122,1749915033464,-460.0,0.00021917,4]
[365789123,1749915033474,-460.0,0.00021917,4]
[365789124,1749915033484,-460.0,0.00021917,4]
[365789125,1749915033494,-430.0,0.00021917,4]
[365789126,1749915033504,-460.0,0.00021917,4]
[365789127,1749915033514,-301.7235316,0.00021917,4]
[365789128,1749915033524,-460.0,0.00021917,4]
[365789129,1749915033535,-460.0,0.00021917,4]
[365789130,1749915033545,-460.0,0.00021917,4]
[365789131,1749915033555,-460.0,0.00021917,4]
[365789132,1749915033565,-460.0,0.00021917,4]
[365789133,1749915033575,-460.0,0.00021917,4]
[365789134,1749915033585,-460.0,0.00021917,4]
[365789135,1749915033594,-460.0,0.00021917,4]
[365789136,1749915033604,-460.0,0.00021917,4]
[365789137,1749915033614,-238.98025227,0.00021917,4]
[365789138,1749915033624,-436.35779841,0.00021917,4]
[365789139,1749915033633,-460.0,0.00021917,4]
[365789140,1749915033643,-460.0,0.00021917,4]
[365789141,1749915033653,-446.20414766,0.00021917,4]
[365789142,1749915033663,-460.0,0.00021917,4]
[365789143,1749915033672,-460.0,0.00021917,4]
[365789144,1749915033682,-460.0,0.00021917,4]
[365789145,1749915033692,-460.0,0.00021917,4]
[365789146,1749915033702,-460.0,0.00021917,4]
[365789147,1749915033711,-460.0,0.00021917,4]
[365789148,1749915033720,-460.0,0.00021917,4]
[365789149,1749915033730,-531.81178089,0.00021917,4]
[365789150,1749915033740,-460.0,0.00021917,4]
[365789151,1749915033749,-460.0,0.00021917,4]
[365789152,1749915033759,-460.0,0.00021917,4]
[365789153,1749915033768,-460.0,0.00021917,4]
[365789154,1749915033777,-460.0,0.00021917,4]
[365789155,1749915033788,-460.0,0.00021917,4]
[365789156,1749915033798,-460.0,0.00021917,4]
[365789157,1749915033807,-342.00440858,0.00021917,4]
[365789158,1749915033817,-501.72686968,0.00021917,4]
[365789159,1749915033826,-285.31245619,0.00021917,4]
[365789160,1749915033836,-460.0,0.00021917,4]
[365789161,1749915033845,-460.0,0.00021917,4]
[365789162,1749915033855,-460.0,0.00021917,4]
[365789163,1749915033864,-460.0,0.00021917,4]
[365789164,1749915033873,-460.0,0.00021917,4]
[365789165,1749915033882,-460.0,0.00021917,4]
[365789166,1749915033892,-440.0,0.00021917,4]
[365789167,1749915033902,-460.0,0.00021917,4]
[365789168,1749915033911,-460.0,0.00021917,4]
[365789169,1749915033920,-430.0,0.00021917,4]
[365789170,1749915033930,-460.0,0.00021917,4]
[365789171,1749915033939,-460.0,0.00021917,4]
[365789172,1749915033949,-441.44435515,0.00021917,4]
[365789173,1749915033958,-460.0,0.00021917,4]
[365789174,1749915033967,-460.0,0.00021917,4]
[365789175,1749915033977,-450.32964236,0.00021917,4]
[365789176,1749915033986,-460.0,0.00021917,4]
[365789177,1749915033996,-460.0,0.00021917,4]
[365789178,1749915034006,-460.0,0.00021917,4]
[365789179,1749915034015,-460.0,0.00021917,4]
[365789180,1749915034132,-460.0,0.00021917,4]
[365789181,1749915034142,-460.0,0.00021917,4]
[365789182,1749915034154,-340.09597348,0.00021917,4]
[365789183,1749915034163,-436.42402116,0.00021917,4]
[365789184,1749915034173,-460.0,0.00021917,4]
[365789185,1749915034183,-460.0,0.00021917,4]
[365789186,1749915034192,-460.0,0.00021917,4]
[365789187,1749915034201,-460.0,0.00021917,4]
[365789188,1749915034211,-460.0,0.00021917,4]
[365789189,1749915034221,-441.14715099,0.00021917,4]
[365789190,1749915034231,-430.0,0.00021917,4]
[365789191,1749915034240,-460.0,0.00021917,4]
[365789192,1749915034251,-448.39934193,0.00021917,4]
[365789193,1749915034260,-432.76367698,0.00021917,4]
[365789194,1749915034270,-440.0,0.00021917,4]
[365789195,1749915034281,-460.0,0.00021917,4]
[365789196,1749915034291,-511.9088741,0.00021917,4]
[365789197,1749915034301,-450.0,0.00021917,4]
[365789198,1749915034311,-460.0,0.00021917,4]
[365789199,1749915034320,-460.0,0.00021917,4]
[365789200,1749915034331,-460.0,0.00021917,4]
[365789201,1749915034342,-460.0,0.00021917,4]
[365789202,1749915034352,-403.21366721,0.00021917,4]
[365789203,1749915034362,-460.0,0.00021917,4]
[365789204,1749915034372,-460.0,0.00021917,4]
[365789205,1749915034381,-460.0,0.00021917,4]
[365789206,1749915034391,-440.0,0.00021917,4]
[365789207,1749915034401,-460.0,0.00021917,4]
[365789208,1749915034410,-460.0,0.00021917,4]
[365789209,1749915034420,-460.0,0.00021917,4]
[365789210,1749915034430,-460.0,0.00021917,4]
[365789211,1749915034445,-460.0,0.00021917,4]
[365789212,1749915034454,-460.0,0.00021917,4]
[365789213,1749915034464,-460.0,0.00021917,4]
[365789214,1749915034475,-440.0,0.00021917,4]
[365789215,1749915034485,-402.48589926,0.00021917,4]
[365789216,1749915034495,-460.0,0.00021917,4]
[365789217,1749915034505,-460.0,0.00021917,4]
[365789218,1749915034515,-460.0,0.00021917,4]
[365789219,1749915034526,-440.68186825,0.00021917,4]
[365789220,1749915034537,-500.0,0.00021917,4]
[365789221,1749915034546,-440.0,0.00021917,4]
[365789222,1749915034556,-460.0,0.00021917,4]
[365789223,1749915034566,-500.0,0.00021917,4]
[365789224,1749915034575,-440.0,0.00021917,4]
[365789225,1749915034584,-440.0,0.00021917,4]
[365789226,1749915034594,-153.51658329,0.00021917,2]
[365789227,1749915034603,-500.0,0.00021917,4]
[365789228,1749915034612,-460.0,0.00021917,4]
[365789229,1749915034621,-460.0,0.00021917,4]
[365789230,1749915034631,-500.0,0.00021917,4]
[365789231,1749915034641,-500.0,0.00021917,4]
[365789232,1749915034650,-460.0,0.00021917,4]
[365789233,1749915034659,-419.58487745,0.00021917,4]
[365789234,1749915034668,-500.0,0.00021917,4]
[365789235,1749915034677,-300.0,0.00021917,4]
[365789236,1749915034686,-440.0,0.00021917,4]
[365789237,1749915034696,-210.28283942,0.00021917,4]
[365789238,1749915034705,-500.0,0.00021917,4]
[365789239,1749915034715,-441.69169225,0.00021917,4]
[365789240,1749915034724,-373.09630397,0.00021917,4]
[365789241,1749915034733,-430.0,0.00021917,4]
[365789242,1749915034743,-443.51374117,0.00021917,4]
[365789243,1749915034753,-430.0,0.00021917,4]
[365789244,1749915034762,-460.0,0.00021917,2]
[365789245,1749915034771,-460.0,0.00021917,4]
[365789246,1749915034781,-430.0,0.00021917,4]
[365789247,1749915034790,-460.0,0.00021917,4]
[365789248,1749915034799,-460.0,0.00021917,4]
[365789249,1749915034809,-440.0,0.00021917,4]
[365789250,1749915034818,-460.0,0.00021917,4]
[365789251,1749915034827,-460.0,0.00021917,4]
[365789252,1749915034836,-440.0,0.00021917,4]
[365789253,1749915034851,-430.0,0.00021917,4]
[365789254,1749915034861,-400.0,0.00021917,4]
[365789255,1749915034870,-460.0,0.00021917,4]
[365789256,1749915034879,-460.0,0.00021917,4]
[365789257,1749915034889,-410.59598332,0.00021917,4]
[365789258,1749915034898,-430.0,0.00021917,4]
[365789259,1749915034908,-440.0,0.00021917,4]
[365789260,1749915034916,-460.0,0.00021917,4]
[365789261,1749915034926,-460.0,0.00021917,4]
[365789262,1749915034935,-430.0,0.00021917,4]
[365789263,1749915034944,-440.0,0.00021917,4]
[365789264,1749915034953,-430.0,0.00021917,4]
[365789265,1749915034963,-441.49456003,0.00021917,4]
[365789266,1749915034972,-460.0,0.00021917,4]
[365789267,1749915034982,-460.0,0.00021917,4]
[365789268,1749915034991,-460.0,0.00021917,4]
[365789269,1749915035001,-460.0,0.00021917,4]
[365789270,1749915035010,-442.26357906,0.00021917,4]
[365789271,1749915035020,-460.0,0.00021917,4]
[365789272,1749915035029,-460.0,0.00021917,4]
[365789273,1749915035039,-440.0,0.00021917,4]
[365789274,1749915035048,-460.0,0.00021917,4]
[365789275,1749915035058,-460.0,0.00021917,4]
[365789276,1749915035067,-460.0,0.00021917,4]
[365789277,1749915035077,-440.0,0.00021917,4]
[365789278,1749915035086,-460.0,0.00021917,4]
[365789279,1749915035095,-440.0,0.00021917,4]
[365789280,1749915035104,-400.0,0.00021917,4]
[365789281,1749915035114,-430.0,0.00021917,4]
[365789282,1749915035123,-460.0,0.00021917,4]
[365789283,1749915035133,-430.0,0.00021917,4]
[365789284,1749915035142,-430.0,0.00021917,4]
[365789285,1749915035152,-460.0,0.00021917,4]
[365789286,1749915035161,-330.95214123,0.00021917,4]
[365789287,1749915035171,-460.0,0.00021917,4]
[365789288,1749915035180,-460.0,0.00021917,4]
[365789289,1749915035189,-450.0,0.00021917,4]
[365789290,1749915035199,-415.27785001,0.00021917,4]
[365789291,1749915035208,-460.0,0.00021917,4]
[365789292,1749915035218,-460.0,0.00021917,4]
[365789293,1749915035227,-440.0,0.00021917,4]
[365789294,1749915035236,-460.0,0.00021917,4]
[365789295,1749915035246,-432.85651395,0.00021917,4]
[365789296,1749915035255,-440.0,0.00021917,4]
[365789297,1749915035265,-460.0,0.00021917,4]
[365789298,1749915035275,-283.26683412,0.00021917,4]
[365789299,1749915035285,-460.0,0.00021917,4]
[365789300,1749915035295,-460.0,0.00021917,4]
[365789301,1749915035304,-440.54695167,0.00021917,4]
[365789302,1749915035313,-460.0,0.00021917,4]
[365789303,1749915035323,-430.0,0.00021917,4]
[365789304,1749915035332,-460.0,0.00021917,4]
[365789305,1749915035342,-450.0,0.00021917,4]